fUSD/lending_fUSD_20240409
["ID","MTS","AMOUNT","RATE_DAILY","PERIOD"]
[321981566,1712671851682,-500.0,0.00020583,2]
[321981567,1712671851692,-500.0,0.00020583,2]
[321981568,1712671851701,-603.79,0.00020583,2]
[321981569,1712671851710,-500.0,0.00020583,2]
[321981570,1712671851720,-500.0,0.00020583,2]
[321981571,1712671851731,-500.0,0.00020583,2]
[321981572,1712671851740,-500.0,0.00020583,2]
[321981573,1712671851750,-705.98,0.00020583,2]
[321981574,1712671851760,-500.0,0.00020583,2]
[321981575,1712671851770,-500.0,0.00020583,2]
[321981576,1712671851779,-500.0,0.00020583,2]
[321981577,1712671851789,-500.0,0.00020583,2]
[321981578,1712671851798,-500.0,0.00020583,2]
[321981579,1712671851807,-664.09,0.00020583,2]
[321981580,1712671851816,-644.95,0.00020583,2]
[321981581,1712671851825,-505.95,0.00020583,2]
[321981582,1712671851836,-545.38,0.00020583,2]
[321981583,1712671851845,-500.0,0.00020583,2]
[321981584,1712671851856,-500.0,0.00020583,2]
[321981585,1712671851865,-982.71,0.00020583,2]
[321981586,1712671851874,-814.51,0.00020583,2]
[321981587,1712671851884,-500.0,0.00020583,2]
[321981588,1712671851893,-500.0,0.00020583,2]
[321981589,1712671851903,-500.0,0.00020583,2]
[321981590,1712671851913,-500.0,0.00020583,2]
[321981591,1712671851922,-500.0,0.00020583,2]
[321981592,1712671851932,-500.0,0.00020583,2]
[321981593,1712671851941,-517.83,0.00020583,2]
[321981594,1712671851951,-427.45506785,0.00020583,2]
[321981595,1712671851960,-500.0,0.00020583,2]
[321981596,1712671851970,-500.0,0.00020583,2]
[321981597,1712671851980,-602.12,0.00020583,2]
[321981598,1712671851990,-500.0,0.00020583,2]
[321981599,1712671851999,-500.0,0.00020583,2]
[321981600,1712671852010,-500.0,0.00020583,2]
[321981601,1712671852019,-500.0,0.00020583,2]
[321981602,1712671852030,-500.0,0.00020583,2]
[321981603,1712671852040,-500.0,0.00020583,2]
[321981604,1712671852050,-500.0,0.00020583,2]
[321981605,1712671852059,-684.03,0.00020583,2]
[321981606,1712671852069,-500.0,0.00020583,2]
[321981607,1712671852077,-500.0,0.00020583,2]
[321981608,1712671852087,-500.0,0.00020583,2]
[321981609,1712671852096,-500.0,0.00020583,2]
[321981610,1712671852107,-500.0,0.00020583,2]
[321981611,1712671852116,-696.96,0.00020583,2]
[321981612,1712671852126,-500.0,0.00020583,2]
[321981613,1712671852135,-500.0,0.00020583,2]
[321981614,1712671852146,-500.0,0.00020583,2]
[321981615,1712671852155,-1016.9,0.00020583,2]
[321981616,1712671852165,-500.0,0.00020583,2]
[321981617,1712671852174,-500.0,0.00020583,2]
[321981618,1712671852185,-500.0,0.00020583,2]
[321981619,1712671852196,-1403.34,0.00020583,2]
[321981620,1712671852206,-245.44,0.00020583,2]
[321981621,1712671852215,-840.49,0.00020583,2]
[321981622,1712671852225,-837.38,0.00020583,2]
[321981623,1712671852234,-500.0,0.00020583,2]
[321981624,1712671852243,-500.0,0.00020583,2]
[321981625,1712671852253,-500.0,0.00020583,2]
[321981626,1712671852262,-601.31,0.00020583,2]
[321981627,1712671852272,-500.0,0.00020583,2]
[321981628,1712671852282,-500.0,0.00020583,2]
[321981629,1712671852292,-500.0,0.00020583,2]
[321981630,1712671852301,-8692.57,0.00020583,2]
[321981631,1712671852311,-2171.14,0.00020583,2]
[321981632,1712671852321,-500.0,0.00020583,2]
[321981633,1712671852330,-3063.02,0.00020583,2]
[321981634,1712671852339,-500.0,0.00020583,2]
[321981635,1712671852349,-500.0,0.00020583,2]
[321981636,1712671852359,-27616.42,0.00020583,2]
[321981637,1712671852368,-500.0,0.00020583,2]
[321981638,1712671852378,-528.58,0.00020583,2]
[321981639,1712671852387,-2395.05,0.00020583,2]
[321981640,1712671852397,-500.0,0.00020583,2]
[321981641,1712671852406,-1954.83,0.00020583,2]
[321981642,1712671852415,-613.99677089,0.00020583,2]
[321981643,1712671852424,-2802.45,0.00020583,2]
[321981644,1712671852433,-500.0,0.00020583,2]
[321981645,1712671852443,-554.66,0.00020583,2]
[321981646,1712671852452,-175.36,0.00020583,2]
[321981647,1712671852461,-500.0,0.00020583,2]
[321981648,1712671852471,-680.91,0.00020583,2]
[321981649,1712671852483,-364.86,0.00020583,2]
[321981650,1712671852492,-500.0,0.00020583,2]
[321981651,1712671852502,-500.0,0.00020583,2]
[321981652,1712671852512,-500.0,0.00020583,2]
[321981653,1712671852521,-500.0,0.00020583,2]
[321981654,1712671852531,-500.0,0.00020583,2]
[321981655,1712671852540,-171.15591459,0.00020583,2]
[321981656,1712671852549,-500.0,0.00020583,2]
[321981657,1712671852559,-500.0,0.00020583,2]
[321981658,1712671852569,-500.0,0.00020583,2]
[321981659,1712671852578,-500.0,0.00020583,2]
[321981660,1712671852587,-500.0,0.00020583,2]
[321981661,1712671852596,-500.0,0.00020583,2]
[321981662,1712671852605,-500.0,0.00020583,2]
[321981663,1712671852615,-1717.76,0.00020584,2]
[321981664,1712671852624,-500.0,0.00020584,2]
[321981665,1712671852633,-789.86,0.00020584,2]
[321981666,1712671852642,-1241.59,0.00020584,2]
[321981667,1712671852652,-844.69,0.00020584,2]
[321981668,1712671852662,-1207.01,0.00020584,2]
[321981669,1712671852672,-900.77,0.00020584,2]
[321981670,1712671852681,-500.0,0.00020584,2]
[321981671,1712671852691,-1158.6,0.00020584,2]
[321981672,1712671852701,-1274.2,0.00020584,2]
[321981673,1712671852711,-1900.08,0.00020584,2]
[321981674,1712671852721,-500.0,0.00020584,2]
[321981675,1712671852735,-500.0,0.00020584,2]
[321981676,1712671852744,-630.41,0.00020584,2]
[321981677,1712671852753,-875.65,0.00020584,2]
[321981678,1712671852762,-914.54,0.00020584,2]
[321981679,1712671852771,-500.0,0.00020584,2]
[321981680,1712671852780,-1068.63,0.00020584,2]
[321981681,1712671852789,-1897.04,0.00020584,2]
[321981682,1712671852799,-1274.11,0.00020584,2]
[321981683,1712671852809,-785.14,0.00020584,2]
[321981684,1712671852818,-831.25,0.00020584,2]
[321981685,1712671852827,-798.01,0.00020584,2]
[321981686,1712671852837,-1070.99,0.00020584,2]
[321981687,1712671852846,-1093.33,0.00020584,2]
[321981688,1712671852855,-500.0,0.00020584,2]
[321981689,1712671852864,-820.39,0.00020584,2]
[321981690,1712671852874,-500.0,0.00020584,2]
[321981691,1712671852884,-683.81,0.00020584,2]
[321981692,1712671852893,-1203.04,0.00020584,2]
[321981693,1712671852903,-1848.38,0.00020584,2]
[321981694,1712671852913,-780.6,0.00020584,2]
[321981695,1712671852921,-1290.93,0.00020584,2]
[321981696,1712671852931,-984.72,0.00020584,2]
[321981697,1712671852940,-669.13,0.00020584,2]
[321981698,1712671852949,-519.33,0.00020584,2]
[321981699,1712671852959,-1631.32,0.00020584,2]
[321981700,1712671852968,-500.0,0.00020584,2]
[321981701,1712671852979,-500.0,0.00020584,2]
[321981702,1712671852989,-500.0,0.00020584,2]
[321981703,1712671852999,-973.97,0.00020584,2]
[321981704,1712671853009,-500.0,0.00020584,2]
[321981705,1712671853019,-500.0,0.00020584,2]
[321981706,1712671853028,-648.08,0.00020584,2]
[321981707,1712671853038,-502.94,0.00020584,2]
[321981708,1712671853047,-500.0,0.00020584,2]
[321981709,1712671853056,-507.61612504,0.00020587,3]
[321981710,1712671853065,-2919.39465497,0.0002059,2]
[321981711,1712671853075,-10689.84693621,0.00020598,2]
[321981712,1712671853084,-26005.63157345,0.00020599,2]
[321981713,1712671853093,-3056.72436352,0.00020599,2]
[321981714,1712671853102,-621.53417005,0.00020599,2]
[321981715,1712671853111,-150.67349,0.00020599,2]
[321981716,1712671853121,-727309.09816921,0.000206,3]
[321981717,1712671853130,-11761.125585,0.000206,2]
[321981718,1712671853141,-449.0,0.000206,2]
[321981719,1712671853151,-199485.00786922,0.000206,3]
[321981720,1712671853162,-160.04141335,0.00020603,2]
[321981721,1712671853171,-740.0,0.00020621,2]
[321981722,1712671853181,-3178.56093221,0.00020624,2]
[321981723,1712671853194,-1924.7,0.00020634,2]
[321981724,1712671853203,-2127.1,0.00020634,2]
[321981725,1712671853213,-751.32,0.00020634,2]
[321981726,1712671853223,-49561.47,0.00020634,2]
[321981727,1712671853234,-4203.69,0.00020634,2]
[321981728,1712671853244,-2982.25,0.00020634,2]
[321981729,1712671853253,-1239.63,0.00020634,2]
[321981730,1712671853264,-2738.3,0.00020634,2]
[321981731,1712671853274,-1493.66,0.00020634,2]
[321981732,1712671853283,-3122.37,0.00020634,2]
[321981733,1712671853292,-5719.72,0.00020634,2]
[321981734,1712671853301,-3811.79,0.00020634,2]
[321981735,1712671853310,-1343.67,0.00020634,2]
[321981736,1712671853319,-2351.03,0.00020634,2]
[321981737,1712671853328,-500.0,0.00020634,2]
[321981738,1712671853338,-2515.38,0.00020634,2]
[321981739,1712671853347,-1427.99,0.00020653,2]
[321981740,1712671853357,-2474.25,0.00020653,2]
[321981741,1712671853366,-2335.27,0.00020653,2]
[321981742,1712671853374,-4981.87,0.00020653,2]
[321981743,1712671853383,-4515.0,0.00020653,2]
[321981744,1712671853392,-928.03,0.00020653,2]
[321981745,1712671853402,-14896.48,0.00020653,2]
[321981746,1712671853410,-6697.67,0.00020653,2]
[321981747,1712671853419,-2367.06,0.00020653,2]
[321981748,1712671853429,-6415.42,0.00020653,2]
[321981749,1712671853438,-500.0,0.00020655,2]
[321981750,1712671853447,-500.0,0.00020655,2]
[321981751,1712671853456,-500.0,0.00020655,2]
[321981752,1712671853465,-500.0,0.00020655,2]
[321981753,1712671853474,-565.72490889,0.00020655,2]
[321981754,1712671853484,-500.0,0.00020655,2]
[321981755,1712671853494,-500.0,0.00020655,2]
[321981756,1712671853502,-500.0,0.00020655,2]
[321981757,1712671853512,-500.0,0.00020655,2]
[321981758,1712671853521,-500.0,0.00020655,2]
[321981759,1712671853530,-1165.94,0.00020655,2]
[321981760,1712671853539,-503.4,0.00020655,2]
[321981761,1712671853547,-1218.7,0.00020655,2]
[321981762,1712671853557,-500.0,0.00020655,2]
[321981763,1712671853567,-941.19,0.00020655,2]
[321981764,1712671853575,-500.0,0.00020655,2]
[321981765,1712671853585,-504.66,0.00020655,2]
[321981766,1712671853595,-541.49,0.00020655,2]
[321981767,1712671853604,-645.05,0.00020655,2]
[321981768,1712671853614,-500.0,0.00020655,2]
[321981769,1712671853623,-542.93,0.00020655,2]
[321981770,1712671853634,-500.0,0.00020655,2]
[321981771,1712671853644,-1168.84,0.00020655,2]
[321981772,1712671853653,-500.0,0.00020655,2]
[321981773,1712671853662,-1067.18,0.00020655,2]
[321981774,1712671853671,-526.1,0.00020655,2]
[321981775,1712671853681,-500.0,0.00020655,2]
[321981776,1712671853691,-500.0,0.00020655,2]
[321981777,1712671853701,-500.0,0.00020655,2]
[321981778,1712671853712,-1395.94,0.00020655,2]
[321981779,1712671853722,-751.29,0.00020655,2]
[321981780,1712671853733,-667.96,0.00020655,2]
[321981781,1712671853742,-500.0,0.00020655,2]
[321981782,1712671853752,-603.47,0.00020655,2]
[321981783,1712671853762,-500.0,0.00020655,2]
[321981784,1712671853772,-1372.5,0.00020655,2]
[321981785,1712671853782,-950.98,0.00020655,2]
[321981786,1712671853793,-500.0,0.00020655,2]
[321981787,1712671853802,-500.0,0.00020655,2]
[321981788,1712671853811,-613.28,0.00020655,2]
[321981789,1712671853822,-500.0,0.00020655,2]
[321981790,1712671853831,-500.0,0.00020655,2]
[321981791,1712671853842,-500.0,0.00020655,2]
[321981792,1712671853853,-1055.77,0.00020655,2]
[321981793,1712671853862,-500.0,0.00020655,2]
[321981794,1712671853872,-500.0,0.00020655,2]
[321981795,1712671853883,-500.0,0.00020655,2]
[321981796,1712671854014,-1025.26,0.00020655,2]
[321981797,1712671854024,-500.0,0.00020655,2]
[321981798,1712671854033,-500.0,0.00020655,2]
[321981799,1712671854043,-1232.46,0.00020655,2]
[321981800,1712671854053,-606.04,0.00020655,2]
[321981801,1712671854062,-689.75,0.00020655,2]
[321981802,1712671854072,-963.76,0.00020655,2]
[321981803,1712671854080,-500.0,0.00020655,2]
[321981804,1712671854091,-904.57,0.00020655,2]
[321981805,1712671854100,-500.0,0.00020655,2]
[321981806,1712671854110,-500.0,0.00020655,2]
[321981807,1712671854119,-500.0,0.00020655,2]
[321981808,1712671854128,-544.84,0.00020655,2]
[321981809,1712671854138,-150.0,0.00020655,2]
[321981810,1712671854147,-2666.88,0.00020655,2]
[321981811,1712671854157,-1192.5,0.00020655,2]
[321981812,1712671854166,-500.0,0.00020655,2]
[321981813,1712671854177,-500.0,0.00020655,2]
[321981814,1712671854189,-500.0,0.00020655,2]
[321981815,1712671854198,-500.0,0.00020655,2]
[321981816,1712671854208,-854.33,0.00020655,2]
[321981817,1712671854218,-500.0,0.00020655,2]
[321981818,1712671854230,-581.37,0.00020655,2]
[321981819,1712671854239,-500.0,0.00020655,2]
[321981820,1712671854249,-500.0,0.00020655,2]
[321981821,1712671854258,-500.0,0.00020655,2]
[321981822,1712671854268,-500.0,0.00020655,2]
[321981823,1712671854279,-500.0,0.00020655,2]
[321981824,1712671854289,-500.0,0.00020655,2]
[321981825,1712671854298,-500.0,0.00020655,2]
[321981826,1712671854309,-500.0,0.00020655,2]
[321981827,1712671854319,-903.24,0.00020655,2]
[321981828,1712671854328,-500.0,0.00020655,2]
[321981829,1712671854337,-170.36905227,0.00020655,2]
[321981830,1712671854347,-500.0,0.00020655,2]
[321981831,1712671854356,-500.0,0.00020655,2]
[321981832,1712671854366,-500.0,0.00020655,2]
[321981833,1712671854376,-1847.28,0.00020655,2]
[321981834,1712671854385,-938.27,0.00020655,2]
[321981835,1712671854394,-726.4,0.00020655,2]
[321981836,1712671854403,-500.0,0.00020655,2]
[321981837,1712671854413,-500.0,0.00020655,2]
[321981838,1712671854422,-1631.53,0.00020655,2]
[321981839,1712671854432,-500.0,0.00020655,2]
[321981840,1712671854442,-500.0,0.00020655,2]
[321981841,1712671854452,-500.0,0.00020655,2]
[321981842,1712671854461,-793.62,0.00020655,2]
[321981843,1712671854470,-934.01,0.00020655,2]
[321981844,1712671854481,-500.0,0.00020655,2]
[321981845,1712671854491,-552.66,0.00020655,2]
[321981846,1712671854500,-500.0,0.00020655,2]
[321981847,1712671854510,-568.02817861,0.00020655,2]
[321981848,1712671854521,-912.43,0.00020655,2]
[321981849,1712671854530,-500.0,0.00020655,2]
[321981850,1712671854540,-500.0,0.00020655,2]
[321981851,1712671854550,-1094.81,0.00020655,2]
[321981852,1712671854560,-500.0,0.00020655,2]
[321981853,1712671854570,-536.2,0.00020655,2]
[321981854,1712671854579,-575.28,0.00020655,2]
[321981855,1712671854590,-500.0,0.00020655,2]
[321981856,1712671854599,-500.0,0.00020655,2]
[321981857,1712671854608,-1474.92,0.00020655,2]
[321981858,1712671854619,-500.0,0.00020655,2]
[321981859,1712671854629,-500.0,0.00020655,2]
[321981860,1712671854639,-500.0,0.00020655,2]
[321981861,1712671854648,-969.57,0.00020655,2]
[321981862,1712671854658,-2927.55,0.00020655,2]
[321981863,1712671854668,-500.0,0.00020655,2]
[321981864,1712671854677,-500.0,0.00020655,2]
[321981865,1712671854687,-724.14,0.00020655,2]
[321981866,1712671854698,-435.66373454,0.00020655,2]
[321981867,1712671854707,-1124.97,0.00020655,2]
[321981868,1712671854717,-766.96,0.00020655,2]
[321981869,1712671854728,-1644.46,0.00020655,2]
[321981870,1712671854738,-963.56,0.00020655,2]
[321981871,1712671854747,-500.0,0.00020655,2]
[321981872,1712671854757,-1148.55,0.00020655,2]
[321981873,1712671854768,-500.0,0.00020655,2]
[321981874,1712671854777,-4626.8,0.00020655,2]
[321981875,1712671854786,-2138.01,0.00020655,2]
[321981876,1712671854796,-500.0,0.00020655,2]
[321981877,1712671854807,-500.0,0.00020655,2]
[321981878,1712671854816,-500.0,0.00020655,2]
[321981879,1712671854825,-763.67,0.00020655,2]
[321981880,1712671854834,-8833.3,0.00020655,2]
[321981881,1712671854844,-500.0,0.00020655,2]
[321981882,1712671854853,-1782.22,0.00020655,2]
[321981883,1712671854863,-5122.02,0.00020655,2]
[321981884,1712671854873,-500.0,0.00020655,2]
[321981885,1712671854883,-578.98,0.00020655,2]
[321981886,1712671854895,-12947.12,0.00020655,2]
[321981887,1712671854905,-500.0,0.00020655,2]
[321981888,1712671854914,-8837.64,0.00020655,2]
[321981889,1712671854926,-500.0,0.00020655,2]
[321981890,1712671854936,-828.09,0.00020655,2]
[321981891,1712671854947,-500.0,0.00020655,2]
[321981892,1712671854957,-500.0,0.00020655,2]
[321981893,1712671854966,-500.0,0.00020655,2]
[321981894,1712671854975,-1694.7,0.00020655,2]
[321981895,1712671854986,-5602.11,0.00020655,2]
[321981896,1712671854995,-430.71788465,0.00020655,2]
[321981897,1712671855005,-517.12,0.00020655,2]
[321981898,1712671855015,-18478.87,0.00020655,2]
[321981899,1712671855025,-500.0,0.00020655,2]
[321981900,1712671855035,-500.0,0.00020655,2]
[321981901,1712671855045,-528.79,0.00020655,2]
[321981902,1712671855055,-1301.57,0.00020655,2]
[321981903,1712671855064,-500.0,0.00020655,2]
[321981904,1712671855075,-500.0,0.00020655,2]
[321981905,1712671855085,-500.0,0.00020655,2]
[321981906,1712671855096,-1476.42,0.00020655,2]
[321981907,1712671855105,-618.14,0.00020655,2]
[321981908,1712671855114,-1115.06,0.00020655,2]
[321981909,1712671855124,-797.19,0.00020655,2]
[321981910,1712671855133,-680.03,0.00020655,2]
[321981911,1712671855142,-733.89,0.00020655,2]
[321981912,1712671855151,-500.0,0.00020655,2]
[321981913,1712671855160,-1629.42,0.00020655,2]
[321981914,1712671855170,-500.0,0.00020655,2]
[321981915,1712671855180,-5033.76,0.00020655,2]
[321981916,1712671855193,-520.85,0.00020655,2]
[321981917,1712671855202,-1429.17,0.00020655,2]
[321981918,1712671855211,-1591.71,0.00020655,2]
[321981919,1712671855221,-500.0,0.00020655,2]
[321981920,1712671855231,-500.0,0.00020655,2]
[321981921,1712671855240,-500.0,0.00020655,2]
[321981922,1712671855250,-500.0,0.00020655,2]
[321981923,1712671855259,-500.0,0.00020655,2]
[321981924,1712671855270,-720.0,0.00020655,2]
[321981925,1712671855281,-686.6,0.00020655,2]
[321981926,1712671855290,-2404.78,0.00020655,2]
[321981927,1712671855299,-519.89027297,0.00020656,2]
[321981928,1712671855309,-500.0,0.00020656,2]
[321981929,1712671855319,-885.87,0.00020656,2]
[321981930,1712671855329,-500.0,0.00020656,2]
[321981931,1712671855339,-500.0,0.00020656,2]
[321981932,1712671855349,-500.0,0.00020656,2]
[321981933,1712671855358,-500.0,0.00020656,2]
[321981934,1712671855367,-500.0,0.00020656,2]
[321981935,1712671855377,-500.0,0.00020656,2]
[321981936,1712671855386,-500.0,0.00020656,2]
[321981937,1712671855396,-500.0,0.00020656,2]
[321981938,1712671855406,-500.0,0.00020656,2]
[321981939,1712671855416,-500.0,0.00020656,2]
[321981940,1712671855427,-500.0,0.00020656,2]
[321981941,1712671855436,-1947.54,0.00020656,2]
[321981942,1712671855446,-614.41132346,0.00020656,2]
[321981943,1712671855455,-500.0,0.00020656,2]
[321981944,1712671855465,-1405.61,0.00020656,2]
[321981945,1712671855474,-3356.06,0.00020656,2]
[321981946,1712671855485,-1957.74,0.00020656,2]
[321981947,1712671855494,-7814.07,0.00020656,2]
[321981948,1712671855503,-3300.61,0.00020656,2]
[321981949,1712671855512,-500.0,0.00020656,2]
[321981950,1712671855521,-3579.28,0.00020656,2]
[321981951,1712671855531,-14075.68,0.00020656,2]
[321981952,1712671855542,-41852.45,0.00020656,2]
[321981953,1712671855554,-1783.96,0.00020656,2]
[321981954,1712671855571,-2414.72,0.00020656,2]
[321981955,1712671855583,-1814.78,0.00020656,2]
[321981956,1712671855593,-3773.23,0.00020656,2]
[321981957,1712671855603,-1082.68882242,0.00020674,2]
[321981958,1712671855613,-325.84537089,0.00020678,2]
[321981959,1712671855623,-5180.8701288,0.00020686,2]
[321981960,1712671855632,-500.0,0.00020689,2]
[321981961,1712671855643,-500.0,0.00020689,2]
[321981962,1712671855652,-176.96,0.00020689,2]
[321981963,1712671855662,-908.36,0.00020689,2]
[321981964,1712671855672,-548.86,0.00020689,2]
[321981965,1712671855682,-500.0,0.00020689,2]
[321981966,1712671855692,-500.0,0.00020689,2]
[321981967,1712671855702,-500.0,0.00020689,2]
[321981968,1712671855713,-500.0,0.00020689,2]
[321981969,1712671855722,-503.66,0.00020689,2]
[321981970,1712671855734,-500.0,0.00020689,2]
[321981971,1712671855743,-999.28,0.00020689,2]
[321981972,1712671855752,-960.92,0.00020689,2]
[321981973,1712671855761,-564.79,0.00020689,2]
[321981974,1712671855771,-565.27,0.00020689,2]
[321981975,1712671855783,-999.62,0.00020689,2]
[321981976,1712671855798,-931.1,0.00020689,2]
[321981977,1712671855809,-581.43,0.00020689,2]
[321981978,1712671855820,-500.0,0.00020689,2]
[321981979,1712671855829,-845.19,0.00020689,2]
[321981980,1712671855839,-500.0,0.00020689,2]
[321981981,1712671855849,-951.09,0.00020689,2]
[321981982,1712671855859,-1448.88,0.00020689,2]
[321981983,1712671855869,-1140.47131952,0.00020691,2]
[321981984,1712671855879,-507.61612504,0.00020691,3]
[321981985,1712671855889,-150.0,0.000207,2]
[321981986,1712671855899,-150.0,0.000207,2]
[321981987,1712671855909,-300.0,0.000207,2]
[321981988,1712671855919,-448.88,0.00020716,2]
[321981989,1712671855929,-300.39,0.00020716,2]
[321981990,1712671855940,-630.2,0.00020744,2]
[321981991,1712671855949,-500.0,0.00020744,2]
[321981992,1712671855958,-160.04141335,0.00020751,2]
[321981993,1712671855968,-2568.08,0.00020756,2]
[321981994,1712671855979,-3415.19,0.00020756,2]
[321981995,1712671855988,-4497.06,0.00020756,2]
[321981996,1712671855997,-1132.55,0.00020756,2]
[321981997,1712671856009,-1809.81,0.00020756,2]
[321981998,1712671856018,-7449.54,0.00020756,2]
[321981999,1712671856027,-11896.33,0.00020756,2]
[321982000,1712671856037,-2464.31,0.00020756,2]
[321982001,1712671856046,-2618.22,0.00020756,2]
[321982002,1712671856056,-2036.98,0.00020756,2]
[321982003,1712671856065,-5135.46,0.00020756,2]
[321982004,1712671856076,-3256.25,0.00020756,2]
[321982005,1712671856086,-500.0,0.00020756,2]
[321982006,1712671856096,-2301.94,0.00020756,2]
[321982007,1712671856106,-3398.94,0.00020756,2]
[321982008,1712671856116,-2551.09,0.00020756,2]
[321982009,1712671856125,-3363.81,0.00020756,2]
[321982010,1712671856135,-7955.25,0.00020756,2]
[321982011,1712671856144,-500.0,0.00020767,2]
[321982012,1712671856154,-1082.68882242,0.00020787,2]
[321982013,1712671856164,-156.50469595,0.00020798,3]
[321982014,1712671856175,-96883.90244085,0.000208,3]
[321982015,1712671856954,-5811.58421816,0.000208,3]
[321982016,1712671856966,-1109.26928877,0.000208,3]
[321982017,1712671856977,-13325.05024704,0.000208,3]
[321982018,1712671856996,-3346.53542902,0.000208,3]
[321982019,1712671857018,-201654.48793677,0.000208,3]
[321982020,1712671857029,-2809.58365024,0.000208,3]
[321982021,1712671857591,-346.34600004,0.00020272,2]
[321982022,1712671857641,-1048.351,0.00020272,2]
[321982023,1712671857652,-778.65118365,0.00020272,2]
[321982024,1712671857662,-507.61612504,0.00020796,3]
[321982025,1712671857671,-115958.03816795,0.000208,3]
[321982026,1712671857682,-8540.58410482,0.000208,3]
[321982027,1712671857713,-22250.43799203,0.000208,3]
[321982028,1712671857723,-160.084,0.00020805,2]
[321982029,1712671857733,-208.0,0.00020805,2]
[321982030,1712671857743,-153.845,0.00020805,2]
[321982031,1712671857752,-152.494,0.00020805,2]
[321982032,1712671857761,-155.832,0.00020805,2]
[321982033,1712671857771,-568.05,0.00020805,2]
[321982034,1712671857782,-542.905,0.00020805,2]
[321982035,1712671857793,-752.086,0.00020805,2]
[321982036,1712671857803,-617.989,0.00020805,2]
[321982037,1712671857813,-1944.0,0.00020805,2]
[321982038,1712671857823,-435.0,0.00020805,2]
[321982039,1712671857833,-1139.0,0.00020805,2]
[321982040,1712671857843,-398.0,0.00020805,2]
[321982041,1712671857853,-3037.0,0.00020805,2]
[321982042,1712671857863,-1469.0,0.00020805,2]
[321982043,1712671857874,-1634.0,0.00020805,2]
[321982044,1712671857885,-2435.0,0.00020805,2]
[321982045,1712671857895,-214.0,0.00020805,2]
[321982046,1712671857904,-354.0,0.00020805,2]
[321982047,1712671857914,-442.0,0.00020805,2]
[321982048,1712671857924,-1891.92,0.00020821,2]
[321982049,1712671857934,-3240.2,0.00020821,2]
[321982050,1712671857943,-2910.15,0.00020821,2]
[321982051,1712671857953,-2630.5,0.00020821,2]
[321982052,1712671857963,-953.42,0.00020821,2]
[321982053,1712671857973,-1258.27,0.00020821,2]
[321982054,1712671857984,-3661.63,0.00020821,2]
[321982055,1712671857994,-7209.17,0.00020821,2]
[321982056,1712671858004,-2717.21,0.00020821,2]
[321982057,1712671858015,-3407.59,0.00020821,2]
[321982058,1712671858024,-1766.34,0.00020821,2]
[321982059,1712671858035,-4007.05,0.00020821,2]
[321982060,1712671858044,-5537.03,0.00020821,2]
[321982061,1712671858055,-2014.96,0.00020821,2]
[321982062,1712671858064,-5305.5,0.00020821,2]
[321982063,1712671858074,-2647.1,0.00020821,2]
[321982064,1712671858083,-4475.85,0.00020821,2]
[321982065,1712671858093,-2735.42,0.00020821,2]